bitfinex/quotes_ETHUSD_20250404
["timestamp","ask_amount","ask_price","bid_price","bid_amount"]
[1743770747095,1.5786,1780.1,1779.8,5.67448355]
[1743770747260,1.5786,1780.1,1779.5,7.07434]
[1743770747455,1.5197,1780.3,1779.6,0.76361404]
[1743770747693,1.5197,1780.3,1779.6,9.326644]
[1743770747994,7.13683,1780.3,1779.9,11.23635]
[1743770748361,7.13683,1780.3,1779.8,5.61859]
[1743770748362,1.5197,1780.3,1779.8,5.61859]
[1743770748561,7.13699,1780.3,1779.5,7.62427]
[1743770748797,5.61772,1780.1,1779.7,5.6188]
[1743770748996,5.61801,1780.0,1779.7,5.6188]
[1743770749300,5.61737,1780.2,1779.8,11.23692]
[1743770749498,5.61737,1780.2,1779.8,5.61844]
[1743770749674,7.13675,1780.3,1779.8,5.61846]
[1743770750018,8.150425,1780.3,1779.9,11.23627]
[1743770750162,8.150425,1780.3,1779.9,5.61811]
[1743770750563,8.150425,1780.3,1779.6,5.61924]
[1743770750564,5.61768,1780.1,1779.7,5.6188]
[1743770750873,7.20382,1780.5,1780.1,5.61753]
[1743770751083,1.5872,1780.5,1780.3,5.61699]
[1743770751794,5.61766,1780.1,1779.7,5.61892]
[1743770752114,1.6353,1780.0,1779.7,5.61875]
[1743770752261,5.61873,1779.8,1779.4,11.2396]
[1743770752459,5.61873,1779.8,1779.5,5.61953]
[1743770752656,5.61857,1779.9,1779.6,5.61913]
[1743770752881,7.25329,1780.0,1779.6,5.61913]
[1743770753092,1.6353,1780.0,1779.5,5.61953]
[1743770753300,5.61852,1779.9,1779.5,5.61952]
[1743770753500,5.61873,1779.8,1779.4,5.61976]
[1743770753721,5.61852,1779.9,1779.5,5.61954]
[1743770753953,12.87165,1780.0,1779.6,5.61911]
[1743770754158,8.540615,1780.0,1779.6,5.61908]
[1743770754428,7.25345,1780.0,1779.6,5.61908]
[1743770754626,5.6184,1779.9,1779.5,5.61939]
[1743770754795,1.6353,1780.0,1779.3,5.62003]
[1743770754995,1.6353,1780.0,1779.7,5.61874]
[1743770755510,1.6353,1780.0,1779.8,5.61859]
[1743770755835,5.61852,1779.9,1779.4,0.55]
[1743770756001,12.87149,1780.0,1779.6,5.61907]
[1743770756196,3.0,1780.1,1779.5,5.6193]
[1743770756507,5.6177,1780.1,1779.2,10.62504]
[1743770756707,5.61842,1779.9,1779.5,5.61927]
[1743770757021,5.61842,1779.9,1779.5,11.23867]
[1743770757224,5.61799,1780.0,1779.6,5.61923]
[1743770757428,5.61789,1780.1,1779.7,5.61876]
[1743770757628,5.61789,1780.1,1779.7,11.23758]
[1743770757828,5.61783,1780.1,1779.7,5.61876]
[1743770758026,5.6184,1779.9,1779.5,5.61948]
[1743770758202,7.25806,1779.8,1779.4,5.61977]
[1743770758408,1.6393,1779.8,1779.1,5.67076]
[1743770758629,1.6162,1779.3,1779.1,0.05]
[1743770758942,7.23657,1779.3,1779.1,0.05]
[1743770759146,1.6162,1779.3,1779.1,0.05]
[1743770759643,1.6162,1779.3,1779.2,5.6205]
[1743770759818,1.6162,1779.3,1779.1,0.05]
[1743770760424,4.5362,1779.6,1779.3,5.62016]
[1743770760634,1.5362,1779.6,1779.1,0.05]
[1743770760820,7.2805,1780.0,1779.6,5.61911]
[1743770761034,1.6625,1780.0,1779.7,5.61868]
[1743770761210,7.25141,1780.4,1779.8,0.05618312]
[1743770761414,5.61754,1780.2,1779.8,5.61847]
[1743770761616,3.0,1780.2,1779.6,5.61922]
[1743770761843,7.25124,1780.4,1779.7,6.23701818]
[1743770762030,1.6345,1780.4,1780.0,5.61778]
[1743770762542,7.25132,1780.4,1780.0,11.23561]
[1743770762748,5.61768,1780.1,1779.7,5.61867]
[1743770762926,5.61811,1780.0,1779.6,11.23826]
[1743770763122,5.61768,1780.1,1779.7,5.6189]
[1743770763328,5.61802,1780.0,1779.7,5.6189]
[1743770763632,11.23692,1779.9,1779.5,5.6194]
[1743770763832,2.65437,1780.0,1779.9,5.61829]
[1743770763833,1.5308,1780.0,1779.9,5.61829]
[1743770764019,1.5308,1780.0,1779.8,5.61849]
[1743770764353,13.16478,1780.1,1779.7,5.61872]
[1743770764510,18.78272,1780.1,1779.7,5.61869]
[1743770764862,15.043052,1780.1,1779.7,11.23746]
[1743770765069,15.043052,1780.1,1779.7,5.61869]
[1743770765211,5.61805,1780.0,1779.5,5.61941]
[1743770765409,7.24319,1779.9,1779.5,5.61941]
[1743770765610,7.24319,1779.9,1779.5,11.23882]
[1743770765855,5.61871,1779.8,1779.5,5.61941]
[1743770766170,1.6248,1779.9,1779.6,5.6191]
[1743770766520,1.6248,1779.9,1779.5,0.561941]
[1743770766849,1.5358,1780.3,1779.8,1.4548]
[1743770767025,1.5358,1780.3,1779.9,5.61809]
[1743770767373,5.61777,1780.1,1779.7,5.6189]
[1743770767718,5.61777,1780.1,1779.7,11.23769]
[1743770767919,1.5358,1780.3,1779.7,5.61879]
[1743770768121,5.6187,1779.8,1779.5,5.61942]
[1743770768425,1.5048,1779.7,1779.1,0.05]
[1743770768753,1.5048,1779.7,1779.4,5.61965]
[1743770768950,1.5048,1779.7,1779.4,11.23933]
[1743770769457,1.5048,1779.7,1779.5,5.6195]
[1743770769661,7.12373,1779.7,1779.4,5.61965]
[1743770770140,1.5048,1779.7,1779.4,5.61965]
[1743770770468,1.5048,1779.7,1779.5,5.61944]
[1743770770753,7.12393,1779.7,1779.3,5.62015]
[1743770770925,5.61948,1779.6,1779.1,11.29139]
[1743770771124,11.23896,1779.6,1779.2,5.6203]
[1743770771378,5.62036,1779.3,1779.1,0.05]
[1743770771550,7.1661,1779.2,1779.1,0.05]
[1743770771859,10.1661,1779.2,1779.1,0.05]
[1743770772746,1.5456,1779.2,1779.1,0.05]
[1743770772986,1.5456,1779.2,1779.1,5.67081]
[1743770773134,1.5459,1779.6,1779.1,6.800003]
[1743770773451,5.62006,1779.4,1779.1,0.05]
[1743770773663,1.5459,1779.6,1779.1,0.05]
[1743770773857,1.5459,1779.6,1779.3,5.62007]
[1743770774081,1.5459,1779.6,1779.4,5.61986]
[1743770774377,1.5459,1779.6,1779.3,5.61999]
[1743770774555,1.5459,1779.6,1779.4,5.61982]
[1743770774954,5.6202,1779.3,1779.1,0.05]
[1743770775154,7.1275,1779.2,1779.1,0.05]
[1743770775559,10.1275,1779.2,1779.1,0.05]
[1743770775985,10.1884,1779.2,1779.1,0.05]
[1743770776148,12.13805157,1779.2,1779.1,0.05]
[1743770776353,7.19044,1778.6,1778.2,11.24711]
[1743770776553,7.19044,1778.6,1778.2,11.24701]
[1743770776750,1.5679,1778.6,1778.4,5.62299]
[1743770776951,4.5008,1779.0,1778.7,5.62196]
[1743770777184,10.12193,1779.0,1778.6,5.62239]
[1743770777486,5.62186,1778.8,1778.5,5.6227]
[1743770777650,5.6221,1778.7,1778.3,5.62329]
[1743770777847,11.24437,1778.7,1778.3,5.62316]
[1743770778047,11.24445,1778.7,1778.3,5.62316]
[1743770778254,1.5244,1778.7,1778.1,5.67397]
[1743770778454,7.14668,1778.7,1778.3,5.62332]
[1743770778766,11.24506,1778.6,1778.2,5.62365]
[1743770778981,5.62271,1778.5,1778.1,5.67394]
[1743770779158,11.24561,1778.5,1778.1,5.67386]
[1743770779476,5.62271,1778.5,1778.1,5.67386]
[1743770779788,1.5902,1778.2,1778.1,0.05]
[1743770780010,9.1292,1778.2,1778.1,0.05]
[1743770780281,14.75286,1778.2,1778.1,0.05]
[1743770780855,17.75286,1778.2,1778.1,0.05]
[1743770783068,17.75186,1778.2,1778.1,0.05]
[1743770783264,1.5902,1778.2,1778.1,5.67398]
[1743770783789,7.538,1778.4,1778.2,5.62337]
[1743770784094,1.6339,1778.5,1778.2,11.24685]
[1743770784295,1.6644,1779.2,1778.4,5.62303]
[1743770784514,7.28501,1779.2,1778.8,5.62162]
[1743770784651,1.6644,1779.2,1778.6,5.62209]
[1743770784857,5.62135,1779.0,1778.6,5.62238]
[1743770785191,1.6644,1779.2,1778.7,5.62183]
[1743770785366,1.6644,1779.2,1778.5,5.62271]
[1743770785556,2.392872,1779.2,1778.8,5.62159]
[1743770785756,2.392872,1779.2,1778.9,5.62132]
[1743770785954,2.392872,1779.2,1778.6,5.62232]
[1743770785955,1.6644,1779.2,1778.6,5.62232]
[1743770786291,1.6644,1779.2,1778.9,5.62115]
[1743770786487,1.6644,1779.2,1778.8,5.62175]
[1743770786488,1.6644,1779.2,1779.0,5.62099]
[1743770786696,1.6346,1779.4,1779.1,5.62065]
[1743770786988,1.6346,1779.4,1778.8,7.12655]
[1743770786989,5.62063,1779.2,1778.8,5.62167]
[1743770787189,12.365411,1779.2,1778.8,5.62167]
[1743770787386,12.365411,1779.2,1778.9,5.6212]
[1743770787387,1.124081,1779.2,1778.9,5.6212]
[1743770787598,10.25472,1779.4,1779.1,5.62062]
[1743770787599,1.6346,1779.4,1779.1,5.62062]
[1743770787758,1.6346,1779.4,1778.9,0.05620863]
[1743770788092,1.6115,1779.8,1779.6,5.61905]
[1743770788327,1.6115,1779.8,1779.1,5.62081]
[1743770788328,1.5899,1780.2,1780.0,5.6177]
[1743770788657,1.5899,1780.2,1779.9,5.6181]
[1743770788860,0.720694,1780.2,1780.1,5.61766]
[1743770789093,26.8769,1780.4,1780.1,5.61763]
[1743770789303,26.8769,1780.4,1779.9,5.61817]
[1743770789467,1.5899,1780.4,1780.3,5.61703]
[1743770789668,1.5466,1780.8,1780.2,5.61734]
[1743770789892,1.5466,1780.8,1780.5,5.61626]
[1743770790184,0.721175,1780.8,1780.7,5.61576]
[1743770790397,0.05,1780.9,1780.6,5.61606]
[1743770790590,0.05,1780.9,1780.7,5.61561]
[1743770790761,0.05,1780.9,1780.8,5.61545]
[1743770791474,0.05,1780.9,1780.7,5.61553]
[1743770792192,0.05,1780.9,1780.7,5.67168481]
[1743770792493,0.05,1780.9,1780.8,7.12025]
[1743770792883,0.05,1780.9,1780.8,5.61545]
[1743770793192,0.05,1780.9,1780.8,5.67160002]
[1743770793363,0.05,1780.9,1780.8,5.61545]
[1743770793566,0.05,1780.9,1780.7,5.61553]
[1743770793784,7.21644,1780.9,1780.5,5.61612]
[1743770794006,5.61601,1780.7,1780.2,5.61719]
[1743770794525,5.61673,1780.4,1779.9,5.61805]
[1743770794811,7.27611,1780.5,1780.0,11.23564]
[1743770795023,12.89277,1780.5,1780.0,5.61778]
[1743770795207,5.6175,1780.2,1779.7,11.23768]
[1743770795526,5.6175,1780.2,1779.8,5.61859]
[1743770795527,0.56175,1780.1,1779.8,5.61859]
[1743770795822,1.6591,1780.0,1779.6,5.61896]
[1743770795974,7.27725,1780.0,1779.6,5.61896]
[1743770796170,5.61832,1779.9,1779.5,5.61955]
[1743770796479,0.561832,1779.8,1779.4,5.61981]
[1743770796929,5.61904,1779.7,1779.3,5.61992]
[1743770797228,0.561832,1779.8,1779.5,5.61955]
[1743770797430,7.27709,1780.0,1779.6,5.61922]
[1743770797636,1.6591,1780.0,1779.6,5.61922]
[1743770797780,1.6591,1780.0,1779.3,5.62001]
[1743770797781,1.6591,1780.0,1779.8,5.61838]
[1743770797988,3.0,1780.2,1779.9,5.61814]
[1743770797989,1.6045,1780.2,1779.9,5.61814]
[1743770798185,1.6045,1780.2,1780.0,5.61797]
[1743770798419,1.6045,1780.2,1779.6,1.5048]
[1743770798597,5.61827,1780.0,1779.5,5.61937]
[1743770798815,5.61925,1779.6,1779.2,5.62036]
[1743770799125,5.61922,1779.7,1779.3,5.62007]
[1743770799417,11.23844,1779.7,1779.2,5.62032]
[1743770799713,1.5787,1779.8,1779.5,5.61955]
[1743770799885,1.5787,1779.8,1779.4,5.6196]
[1743770800080,7.19748,1779.8,1779.4,5.6196]
[1743770800280,9.5877637,1779.8,1779.3,5.62016]
[1743770800485,9.5876137,1779.8,1779.4,5.61987]
[1743770800682,15.2064437,1779.8,1779.4,5.61987]
[1743770800898,5.61914,1779.7,1779.2,5.6203]
[1743770801094,5.61914,1779.7,1779.3,5.62014]
[1743770801600,7.13981337,1779.7,1779.2,5.62048]
[1743770801794,5.61926,1779.6,1779.2,5.62048]
[1743770802191,7.13981337,1779.7,1779.2,0.05619813]
[1743770802418,7.19733,1779.8,1779.4,5.61964]
[1743770802589,1.5787,1779.8,1779.5,5.61937]
[1743770803115,5.61989,1779.4,1778.9,5.62144]
[1743770803318,1.5787,1779.8,1778.7,5.62193]
[1743770803319,5.62074,1779.2,1778.7,5.62193]
[1743770803517,0.562074,1779.1,1778.8,5.62173]
[1743770803718,5.62084,1779.1,1778.7,5.62207]
[1743770803928,5.62147,1778.9,1778.5,7.12748]
[1743770804139,5.62147,1778.9,1778.5,5.6225]
[1743770804635,5.6221,1778.7,1778.3,5.62334]
[1743770804933,5.62182,1778.8,1778.3,5.62312]
[1743770805310,5.62216,1778.7,1778.3,5.62312]
[1743770805810,5.62216,1778.7,1778.2,12.7519]
[1743770806006,5.6224,1778.6,1778.2,8.40846]
[1743770806319,5.62255,1778.6,1778.2,6.90384]
[1743770806506,11.24522,1778.6,1778.2,5.62365]
[1743770806706,11.24522,1778.6,1778.1,0.05]
[1743770806707,5.62278,1778.5,1778.1,5.67395]
[1743770806951,11.24522,1778.6,1778.1,11.29774]
[1743770807133,11.24522,1778.6,1778.2,5.62364]
[1743770807134,5.62255,1778.6,1778.2,5.62364]
[1743770807301,5.62209,1778.7,1778.1,0.05]
[1743770807302,5.62335,1778.3,1778.1,0.05]
[1743770807506,7.16156,1778.4,1778.1,0.05]
[1743770808342,5.62255,1778.6,1778.2,5.62347]
[1743770808639,11.2452,1778.6,1778.2,5.62347]
[1743770808948,11.24519,1778.6,1778.2,5.62347]
[1743770809148,5.62275,1778.5,1778.1,5.67391]
[1743770809530,5.62255,1778.6,1778.1,11.29768]
[1743770809726,5.62255,1778.6,1778.1,5.67377]
[1743770809909,5.62255,1778.6,1778.2,5.62347]
[1743770810121,7.24414,1778.7,1778.1,0.05]
[1743770810335,5.62275,1778.5,1778.1,5.67395]
[1743770810537,5.62321,1778.4,1778.1,0.05]
[1743770811239,6.346894,1778.6,1778.2,5.62366]
[1743770811453,5.62248,1778.6,1778.2,11.24712]
[1743770811654,7.24391,1778.7,1778.4,5.62277]
[1743770811865,1.6218,1778.7,1778.1,0.05]
[1743770812039,1.6218,1778.7,1778.4,5.62303]
[1743770812338,1.6375,1779.0,1778.4,5.62299]
[1743770812526,5.62253,1778.6,1778.2,5.62364]
[1743770812726,5.62186,1778.8,1778.4,5.62287]
[1743770812927,1.6441,1778.7,1778.5,5.62253]
[1743770813146,1.6441,1778.7,1778.4,5.623]
[1743770813342,7.26634,1778.7,1778.3,11.24645]
[1743770813535,7.26634,1778.7,1778.3,5.62315]
[1743770813838,14.68815,1778.9,1778.5,5.62256]
[1743770814016,20.30981,1778.9,1778.5,5.62256]
[1743770814217,1.5466,1778.9,1778.6,5.62229]
[1743770814419,5.62071,1779.2,1778.4,1.5048]
[1743770814721,5.62128,1779.0,1778.6,5.62239]
[1743770814924,3.0,1779.1,1778.5,5.62268]
[1743770815239,5.62166,1778.9,1778.5,5.62268]
[1743770815415,11.24332,1778.9,1778.5,5.62268]
[1743770815622,11.24332,1778.9,1778.5,5.62259]
[1743770815846,5.62178,1778.8,1778.5,5.62254]
[1743770816244,5.62203,1778.8,1778.4,5.62303]
[1743770816444,5.62146,1778.9,1778.6,5.62226]
[1743770816651,1.5843,1779.5,1778.7,1.5048]
[1743770816850,5.62016,1779.4,1779.0,5.62089]
[1743770817015,5.62127,1779.0,1778.6,5.62226]
[1743770817209,1.5191,1778.9,1778.4,1.5048]
[1743770817544,1.5191,1778.9,1778.6,5.6223]
[1743770817840,1.5191,1778.9,1778.8,5.62176]
[1743770818046,5.62189,1778.8,1778.3,5.62308]
[1743770818268,5.62189,1778.8,1778.4,5.62299]
[1743770818473,5.62189,1778.8,1778.4,5.62284]
[1743770818809,1.5191,1778.9,1778.3,5.62331]
[1743770819015,7.14058,1778.9,1778.2,5.62366]
[1743770819331,1.5191,1778.9,1778.6,5.62222]
[1743770819855,5.62222,1778.7,1778.3,7.12791]
[1743770820014,5.62222,1778.7,1778.4,5.6229]
[1743770820524,11.24451,1778.7,1778.3,5.62311]
[1743770820926,5.62222,1778.7,1778.3,5.62311]
[1743770821120,5.62241,1778.6,1778.3,5.62311]
[1743770821326,5.62285,1778.5,1778.1,11.29784]
[1743770821753,5.62285,1778.5,1778.2,5.62363]
[1743770822154,7.516,1778.7,1778.1,5.67396]
[1743770822361,1.6282,1779.1,1778.8,5.62166]
[1743770822651,10.2491,1779.1,1778.7,5.62205]
[1743770822851,11.2426,1779.0,1778.6,5.62234]
[1743770823053,5.62124,1779.0,1778.6,5.62223]
[1743770823267,5.353086,1779.1,1778.6,5.62223]
[1743770823268,10.973936,1779.1,1778.6,5.62223]
[1743770823432,1.6282,1779.1,1778.5,1.5048]
[1743770823637,1.6282,1779.1,1778.6,5.62239]
[1743770823838,1.6282,1779.1,1778.8,5.62165]
[1743770824024,5.6199,1779.4,1779.0,5.62094]
[1743770824224,4.5098,1779.4,1778.7,5.62202]
[1743770824459,5.62105,1779.1,1778.7,5.62202]
[1743770824626,7.2877,1779.0,1778.7,5.62202]
[1743770825131,7.2877,1779.0,1778.6,5.62237]
[1743770825323,5.62148,1778.9,1778.6,5.62236]
[1743770825523,1.6665,1779.0,1778.3,7.12801]
[1743770825748,5.6215,1778.9,1778.6,5.62237]
[1743770825951,11.24314,1778.9,1778.6,5.62237]
[1743770826150,5.6215,1778.9,1778.6,5.62237]
[1743770826353,5.62191,1778.8,1778.5,5.62255]
[1743770826519,11.24385,1778.8,1778.4,11.24585]
[1743770826724,5.62191,1778.8,1778.5,5.62269]
[1743770826922,5.62191,1778.8,1778.5,5.62261]
[1743770827132,11.24384,1778.8,1778.5,5.62261]
[1743770827358,12.368224,1778.8,1778.4,5.62301]
[1743770827581,1.124384,1778.8,1778.2,5.62356]
[1743770827739,1.124384,1778.8,1778.1,0.05]
[1743770827740,5.62329,1778.4,1778.1,0.05]
[1743770827943,7.511,1778.5,1778.2,5.62352]
[1743770828131,18.75689,1778.5,1778.1,5.67381]
[1743770828330,13.13387,1778.5,1778.1,11.29767]
[1743770828641,13.13387,1778.5,1778.2,5.62363]
[1743770828847,18.7568,1778.5,1778.1,5.67381]
[1743770829257,5.62309,1778.4,1778.1,5.67381]
[1743770829461,15.00955,1778.5,1778.1,5.67381]
[1743770829668,13.13387,1778.5,1778.2,5.62364]
[1743770830044,13.13387,1778.5,1778.1,11.29766]
[1743770830243,18.75675,1778.5,1778.1,11.29766]
[1743770830461,7.511,1778.5,1778.1,5.67381]
[1743770830754,5.62316,1778.4,1778.1,0.05]
[1743770830965,5.62345,1778.3,1778.1,0.05]
[1743770831549,5.62303,1778.4,1778.1,0.05]
[1743770831753,13.13376,1778.5,1778.1,11.2977]
[1743770831960,5.62303,1778.4,1778.1,5.67382]
[1743770832166,7.511,1778.5,1778.2,5.62351]
[1743770832351,13.13374,1778.5,1778.2,5.62351]
[1743770832684,13.13374,1778.5,1778.2,5.62358]
[1743770832887,10.59397546,1778.7,1778.1,0.05]
[1743770833106,1.5544,1778.7,1778.4,5.62303]
[1743770833247,7.17661,1778.7,1778.3,5.62313]
[1743770833447,11.2451,1778.6,1778.2,11.2471]
[1743770833657,11.24515,1778.6,1778.2,5.6235]
[1743770833960,5.62246,1778.6,1778.2,5.6235]
[1743770834171,5.62273,1778.5,1778.2,11.24702]
[1743770834394,5.62246,1778.6,1778.2,11.24704]
[1743770834600,1.5544,1778.7,1778.3,5.62303]
[1743770834889,7.17674,1778.7,1778.3,5.62303]
[1743770835046,1.5544,1778.7,1778.5,5.62249]
[1743770835246,1.6436,1778.9,1778.6,5.62217]
[1743770835490,9.1516,1778.9,1778.6,11.24446]
[1743770835654,14.77305,1778.9,1778.5,5.62246]
[1743770835850,9.1516,1778.9,1778.4,0.05622034]
[1743770836094,1.6436,1778.9,1778.7,5.6218]
[1743770836401,13.12788,1779.1,1778.7,11.24378]
[1743770836601,14.75368,1779.1,1778.7,5.6218]
[1743770836894,5.62132,1779.0,1778.6,5.62237]
[1743770837101,16.57114771,1779.1,1778.6,0.05621875]
[1743770837270,14.75377,1779.1,1778.8,5.62167]
[1743770837650,9.1328,1779.1,1778.9,5.62119]
[1743770837859,7.506,1779.2,1779.0,5.62113]
[1743770838083,7.506,1779.2,1778.9,5.62119]
[1743770838391,9.539263,1779.2,1778.3,7.12807]
[1743770838599,11.24203,1779.1,1778.7,5.62187]
[1743770838797,2.00066712,1779.3,1778.9,5.62114]
[1743770838963,14.71117,1779.3,1778.9,5.62121]
[1743770839183,9.0909,1779.3,1778.8,5.62166]
[1743770839379,5.62098,1779.1,1778.7,5.62195]
[1743770839683,5.62124,1779.0,1778.7,5.62195]
[1743770839896,11.24257,1779.0,1778.6,11.24466]
[1743770840122,5.62154,1778.9,1778.5,5.62266]
[1743770840274,5.62154,1778.9,1778.3,5.62332]
[1743770840275,5.62212,1778.7,1778.3,11.24652]
[1743770840481,5.62254,1778.6,1778.3,5.6232]
[1743770840725,9.574354,1778.8,1778.2,1.5048]
[1743770840882,9.0122,1778.8,1778.3,0.05622853]
[1743770841223,5.62216,1778.7,1778.3,5.6233]
[1743770841420,5.62216,1778.7,1778.3,5.62318]
[1743770841652,5.62216,1778.7,1778.4,5.62297]
[1743770841991,20.25601,1778.8,1778.4,11.2459]
[1743770842338,11.24194,1779.1,1778.7,5.62208]
[1743770842504,11.24194,1779.1,1778.7,5.62196]
[1743770842706,5.62086,1779.1,1778.7,5.62196]
[1743770842941,20.34794,1779.2,1778.8,5.62159]
[1743770843240,7.22541,1779.2,1778.8,5.62162]
[1743770843403,1.6047,1779.2,1778.6,7.12713]
[1743770843603,5.62122,1779.0,1778.4,1.12459]
[1743770843924,5.62122,1779.0,1778.4,5.67924343]
[1743770844120,4.6047,1779.2,1778.6,5.62235]
[1743770844313,5.6214,1779.0,1778.6,5.62235]
[1743770844513,4.6047,1779.2,1778.6,5.62235]
[1743770844514,5.62154,1778.9,1778.6,5.62235]
[1743770844711,10.22522,1779.2,1778.3,2.0548]
[1743770844712,1.6047,1779.2,1778.3,2.0548]
[1743770845043,4.15049994,1779.4,1779.0,5.62104]
[1743770845044,7.25772,1779.4,1779.0,5.62104]
[1743770845248,7.5,1779.6,1779.0,5.62113]
[1743770845441,1.5784,1779.6,1779.4,5.61984]
[1743770845796,7.19682,1779.9,1779.5,5.61935]
[1743770846088,1.5784,1779.4,1779.0,5.62108]
[1743770846303,5.62019,1779.3,1779.0,5.62108]
[1743770846535,7.1983,1779.4,1779.0,5.62095]
[1743770846832,13.53184123,1779.6,1779.2,5.6205]
[1743770846997,14.67614,1779.6,1779.3,5.62005]
[1743770847197,9.0569,1779.6,1779.3,11.24013]
[1743770847438,1.5546,1779.9,1779.5,5.61955]
[1743770847641,5.61864,1779.8,1779.5,5.61955]
[1743770847999,7.1729,1779.9,1779.6,5.6192]
[1743770848534,7.1729,1779.9,1779.3,5.62015]
[1743770848535,1.5546,1779.9,1779.7,11.23765]
[1743770848736,38.39966,1780.1,1779.8,5.6186]
[1743770848893,42.39486281,1780.1,1779.7,5.61878]
[1743770849096,5.61812,1780.0,1779.7,5.61878]
[1743770849312,5.61829,1779.9,1779.4,5.61961]
[1743770849518,5.61885,1779.8,1779.4,5.61961]
[1743770849690,5.61893,1779.7,1779.3,5.62017]
[1743770849895,5.61934,1779.6,1779.3,5.62017]
[1743770850339,12.75306,1779.5,1779.1,5.62067]
[1743770850635,5.62019,1779.3,1779.0,5.62101]
[1743770850835,5.61993,1779.4,1779.0,11.24197]
[1743770851333,8.83332594,1779.5,1779.1,5.6206]
[1743770851534,1.5137,1779.5,1779.3,5.62005]
[1743770851834,10.493,1779.8,1779.5,5.61955]
[1743770852031,7.493,1779.8,1779.6,11.23821]
[1743770852207,25.286,1780.1,1779.6,5.6191]
[1743770852410,25.286,1780.1,1779.9,5.61818]
[1743770852606,25.286,1780.1,1779.7,0.05618303]
[1743770852607,18.72789,1780.2,1779.8,11.2372]
[1743770852822,2.029999,1780.2,1779.6,5.61924]
[1743770853031,7.18942,1780.3,1779.6,5.61924]
[1743770853032,14.68142,1780.3,1779.9,5.61827]
[1743770853223,14.68142,1780.3,1780.0,5.61785]
[1743770853420,9.0641,1780.3,1780.0,5.61783]
[1743770853628,9.0641,1780.3,1780.1,5.61763]
[1743770853921,1.5721,1780.3,1780.1,5.61763]
[1743770854155,1.6106,1780.6,1780.0,5.61797]
[1743770854366,1.6106,1780.6,1780.4,5.61657]
[1743770854549,1.6106,1780.6,1780.3,11.23386]
[1743770854757,1.6106,1780.6,1780.3,5.61687]
[1743770855069,1.6106,1780.6,1780.4,5.61665]
[1743770855263,1.6106,1780.6,1780.3,5.61687]
[1743770855436,7.949344,1780.6,1780.2,5.61732]
[1743770855833,5.61683,1780.4,1780.0,11.23579]
[1743770856059,5.61647,1780.5,1780.1,5.61759]
[1743770856267,7.949374,1780.6,1780.2,5.61708]
[1743770856578,2.333254,1780.6,1780.3,11.23361]
[1743770856737,2.333254,1780.6,1780.2,5.61733]
[1743770856936,5.61704,1780.3,1779.9,7.12297]
[1743770857150,7.26755,1780.2,1779.8,5.61851]
[1743770857446,5.61818,1780.0,1779.6,5.6192]
[1743770857646,5.61818,1780.0,1779.3,1.124041]
[1743770857647,4.6502,1780.2,1779.4,5.61985]
[1743770857852,7.12755,1779.7,1779.2,5.62047]
[1743770858052,7.12755,1779.7,1779.3,5.62013]
[1743770858053,5.61936,1779.6,1779.3,5.62013]
[1743770858247,2.221355,1779.7,1779.4,5.61986]
[1743770858438,1.5086,1779.7,1779.6,5.61924]
[1743770858638,7.487,1779.8,1779.4,5.61987]
[1743770858838,7.487,1779.8,1779.5,5.61951]
[1743770859038,13.10591,1779.8,1779.4,11.2394]
[1743770859240,5.61937,1779.6,1779.2,5.6205]
[1743770859477,6.181507,1779.5,1779.0,5.62109]
[1743770859677,5.62029,1779.3,1778.9,5.62133]
[1743770859977,0.561937,1779.5,1779.1,5.62077]
[1743770860152,6.181767,1779.5,1779.1,5.62063]
[1743770860477,6.181767,1779.5,1779.0,5.62108]
[1743770860478,11.24017,1779.4,1779.0,5.62108]
[1743770860654,5.62065,1779.2,1778.8,7.12653]
[1743770860977,1.5289,1779.2,1778.7,5.62204]
[1743770861285,1.5289,1779.2,1778.9,5.62127]
[1743770862237,7.14955,1779.2,1778.8,5.62162]
[1743770862574,5.62114,1779.0,1778.7,5.62199]
[1743770862772,5.62103,1779.1,1778.6,7.127]
[1743770862773,6.335985,1779.1,1778.6,7.127]
[1743770862974,1.5289,1779.2,1779.0,5.621]
[1743770863173,1.5289,1779.2,1778.9,5.62137]
[1743770863477,7.14943,1779.2,1778.7,5.62188]
[1743770863664,1.5289,1779.2,1779.0,5.62107]
[1743770864178,1.6138,1779.4,1779.2,5.6205]
[1743770864376,1.6138,1779.4,1779.0,5.62086]
[1743770864583,1.6138,1779.4,1779.1,5.62078]
[1743770864784,1.6138,1779.4,1779.3,5.62018]
[1743770864991,7.14899,1779.6,1779.1,5.62077]
[1743770865292,11.23952,1779.5,1779.1,5.62077]
[1743770865647,5.61969,1779.5,1779.1,11.24146]
[1743770865899,5.61969,1779.5,1779.1,5.62069]
[1743770866049,8.20576693,1779.6,1779.2,5.62048]
[1743770866050,13.82523693,1779.6,1779.2,5.62048]
[1743770866249,13.82526693,1779.6,1779.2,5.62048]
[1743770866451,8.20576693,1779.6,1779.2,11.24086]
[1743770866664,13.82523693,1779.6,1779.2,5.62038]
[1743770866958,5.61973,1779.5,1779.1,5.62075]
[1743770867346,5.61973,1779.5,1779.1,5.67695211]
[1743770867683,13.82523693,1779.6,1779.2,5.6204]
[1743770867977,11.23936,1779.5,1779.1,5.62075]